bitfinex-derivatives/quotes_BTCF0:USTF0_20250805
["timestamp","ask_amount","ask_price","bid_price","bid_amount"]
[1754403903565,0.79337817,113450.0,113430.0,0.3085376]
[1754403903864,0.74626889,113440.0,113430.0,0.3085376]
[1754403904071,0.74626889,113440.0,113430.0,0.2644594]
[1754403904270,0.74626889,113440.0,113430.0,0.3586794]
[1754403904465,0.09205,113440.0,113430.0,0.4039894]
[1754403904764,1.48470889,113450.0,113440.0,0.2735215]
[1754403905071,0.8354251,113450.0,113440.0,0.2705215]
[1754403905465,0.8354251,113450.0,113440.0,0.1763015]
[1754403905664,0.28360621,113450.0,113440.0,0.1763015]
[1754403905865,0.8354251,113450.0,113440.0,0.1773015]
[1754403906266,1.010711,113450.0,113440.0,0.1773015]
[1754403906471,1.03195156,113450.0,113440.0,0.1773015]
[1754403906667,0.85566566,113450.0,113440.0,0.1773015]
[1754403906866,0.28260621,113450.0,113440.0,0.1773015]
[1754403907168,0.8344251,113450.0,113440.0,0.1773015]
[1754403907365,0.85668208,113450.0,113440.0,0.1773015]
[1754403907569,0.19545,113450.0,113440.0,0.3168315]
[1754403907970,0.19645,113450.0,113440.0,0.3158315]
[1754403908170,0.76952818,113450.0,113440.0,0.3158315]
[1754403908374,0.76952818,113450.0,113440.0,0.1763015]
[1754403909170,0.76852818,113450.0,113440.0,0.1763015]
[1754403909466,0.79443758,113450.0,113430.0,0.308538]
[1754403909774,0.19445,113430.0,113420.0,0.3587058]
[1754403909975,0.19445,113430.0,113420.0,0.4040158]
[1754403910176,0.370767,113430.0,113420.0,0.2644858]
[1754403910375,0.74626889,113430.0,113420.0,0.2644858]
[1754403911075,0.19445,113430.0,113420.0,0.3587058]
[1754403911271,0.74626889,113430.0,113420.0,0.4040158]
[1754403911574,0.74626889,113430.0,113420.0,0.2204032]
[1754403911575,0.370767,113430.0,113420.0,0.2204032]
[1754403911778,0.92258589,113430.0,113420.0,0.1763206]
[1754403911976,0.19445,113420.0,113410.0,0.4028242]
[1754403912368,0.19445,113420.0,113410.0,0.4481342]
[1754403912670,1.28953889,113440.0,113430.0,0.176317]
[1754403912870,1.4871259,113440.0,113430.0,0.176317]
[1754403913068,0.19445,113430.0,113420.0,0.2264631]
[1754403913374,0.07005551,113430.0,113420.0,0.4481057]
[1754403913580,0.02228551,113430.0,113420.0,0.4481057]
[1754403913776,0.001,113430.0,113420.0,0.4481057]
[1754403913973,0.93185,113450.0,113440.0,0.1763015]
[1754403914175,1.50496005,113450.0,113440.0,0.1763015]
[1754403914777,1.77466869,113450.0,113440.0,0.1763015]
[1754403914971,0.19445,113440.0,113430.0,0.2644564]
[1754403915166,0.21574116,113440.0,113430.0,0.2203798]
[1754403915374,0.21574116,113440.0,113430.0,0.3599098]
[1754403915977,0.26074116,113440.0,113430.0,0.3599098]
[1754403916375,0.81256005,113440.0,113430.0,0.3599098]
[1754403916576,0.06629116,113440.0,113430.0,0.3599098]
[1754403916875,0.11406116,113440.0,113430.0,0.3599098]
[1754403917280,0.06629116,113440.0,113430.0,0.3599098]
[1754403918376,0.06629116,113440.0,113430.0,0.91172869]
[1754403918575,0.045,113440.0,113430.0,1.38804069]
[1754403918876,0.001,113450.0,113440.0,0.1763015]
[1754403919075,0.001,113450.0,113440.0,0.86765039]
[1754403919268,0.001,113450.0,113440.0,0.7921275]
[1754403919469,0.001,113450.0,113440.0,0.3158315]
[1754403919676,0.19545,113450.0,113440.0,1.0525115]
[1754403919877,0.05463,113450.0,113440.0,0.3158315]
[1754403920178,0.13528791,113460.0,113450.0,0.3158159]
[1754403920377,0.15659835,113460.0,113450.0,0.3158159]
[1754403920579,0.47954875,113460.0,113450.0,0.3158159]
[1754403920783,1.03136764,113460.0,113450.0,0.3158159]
[1754403920977,0.47954875,113460.0,113450.0,0.1762859]
[1754403921279,0.84372403,113460.0,113450.0,0.2705059]
[1754403921470,0.29190514,113460.0,113450.0,0.3158159]
[1754403921672,0.14522514,113460.0,113450.0,0.3158159]
[1754403921875,0.22097514,113460.0,113450.0,0.3158159]
[1754403922171,0.12352,113460.0,113450.0,1.34391479]
[1754403922378,0.19445,113490.0,113480.0,0.1762393]
[1754403922578,0.19445,113490.0,113480.0,0.2683793]
[1754403922579,0.14665451,113490.0,113480.0,0.2683793]
[1754403922775,0.13979451,113490.0,113480.0,0.2994293]
[1754403923176,0.15587834,113490.0,113480.0,0.2994293]
[1754403923670,0.11510834,113490.0,113480.0,0.2994293]
[1754403923976,0.04938005,113490.0,113480.0,0.7756613]
[1754403924172,0.04938005,113490.0,113480.0,0.2994293]
[1754403924477,0.03329622,113490.0,113480.0,0.2994293]
[1754403924678,0.012,113490.0,113480.0,0.2994293]
[1754403925782,0.007,113490.0,113480.0,0.2994293]
[1754403925984,0.007,113490.0,113480.0,0.3004293]
[1754403926480,0.10408,113500.0,113490.0,0.2924139]
[1754403926682,0.10408,113500.0,113490.0,1.57999279]
[1754403927074,0.11986279,113500.0,113490.0,1.57999279]
[1754403927383,0.10408,113500.0,113490.0,1.0281739]
[1754403927777,0.4587187,113520.0,113510.0,0.1761928]
[1754403928084,0.21556686,113520.0,113510.0,0.2683328]
[1754403928382,0.06888686,113520.0,113510.0,0.2923828]
[1754403929184,0.08476968,113520.0,113510.0,0.2923828]
[1754403929679,0.01588282,113520.0,113510.0,1.0277428]
[1754403929881,0.002,113520.0,113510.0,1.0277428]
[1754403930082,0.002,113520.0,113510.0,0.2923828]
[1754403930282,0.002,113520.0,113510.0,1.75959369]
[1754403930476,0.002,113520.0,113510.0,2.05959369]
[1754403930986,0.11792286,113540.0,113530.0,0.1761617]
[1754403931288,0.28568207,113540.0,113530.0,0.2683017]
[1754403931474,1.01364716,113540.0,113530.0,0.1761617]
[1754403931785,0.46182827,113540.0,113530.0,0.1761617]
[1754403932081,0.28568207,113540.0,113530.0,0.2662017]
[1754403932284,0.28868207,113540.0,113530.0,0.2662017]
[1754403933281,0.29268207,113540.0,113530.0,0.2662017]
[1754403933477,0.82620016,113540.0,113530.0,0.1761618]
[1754403933887,0.1761618,113530.0,113520.0,0.2662129]
[1754403934185,0.19131,113520.0,113510.0,0.3983628]
[1754403935176,0.19131,113520.0,113510.0,0.2642755]
[1754403935378,0.19131,113520.0,113510.0,0.3543155]
[1754403935788,0.19131,113510.0,113500.0,0.2662377]
[1754403935983,0.74312889,113510.0,113500.0,0.1762083]
[1754403936178,0.19131,113510.0,113500.0,0.1762083]
[1754403936382,0.19131,113500.0,113490.0,0.3103124]
[1754403936689,0.3675183,113500.0,113490.0,0.3103124]
[1754403936885,0.3675183,113500.0,113490.0,0.2202724]
[1754403937184,0.19131,113480.0,113470.0,0.3103436]
[1754403937390,0.74312889,113480.0,113470.0,0.2203036]
[1754403937582,0.19131,113480.0,113470.0,0.3103436]
[1754403938385,0.04541,113480.0,113470.0,0.3113436]
[1754403938984,0.13661,113480.0,113470.0,0.3103436]
[1754403939181,0.19131,113480.0,113470.0,0.3113436]
[1754403939382,0.04541,113480.0,113470.0,0.3333936]
[1754403939978,0.19131,113490.0,113480.0,0.1762394]
[1754403940184,0.04541,113490.0,113480.0,0.84014829]
[1754403940484,0.04541,113490.0,113480.0,0.2883294]
[1754403942584,0.04641,113490.0,113480.0,0.2883294]
[1754403942980,0.4557015,113470.0,113450.0,0.3544575]
[1754403943182,0.91939939,113460.0,113450.0,0.09004]
[1754403943388,0.91939939,113460.0,113450.0,0.176286]
[1754403943686,0.91939939,113460.0,113440.0,0.3985515]
[1754403943887,0.19131,113450.0,113440.0,0.3985515]
[1754403944382,0.04541,113450.0,113440.0,0.4206015]
[1754403944787,0.04541,113450.0,113440.0,1.1319515]
[1754403945388,0.20696875,113460.0,113450.0,0.176286]
[1754403945697,0.20696875,113460.0,113450.0,0.266326]
[1754403946090,0.2790444,113460.0,113450.0,0.266326]
[1754403946798,0.2790444,113460.0,113450.0,0.270326]
[1754403947194,0.2790444,113460.0,113450.0,0.272326]
[1754403947398,0.1331444,113460.0,113450.0,0.272326]
[1754403947696,0.1331444,113460.0,113450.0,0.294376]
[1754403948291,0.11748565,113460.0,113450.0,0.294376]
[1754403948492,0.07207565,113460.0,113450.0,0.84619489]
[1754403948698,0.19131,113480.0,113470.0,0.176255]
[1754403948900,0.1459,113480.0,113470.0,0.176255]
[1754403949094,0.1669971,113480.0,113470.0,0.266295]
[1754403949406,0.2124071,113480.0,113470.0,0.266295]
[1754403949897,0.0665071,113480.0,113470.0,0.288345]
[1754403950296,0.13626046,113480.0,113470.0,0.289345]
[1754403950596,0.0210971,113480.0,113470.0,0.289345]
[1754403950994,0.0665071,113480.0,113470.0,0.289345]
[1754403951493,0.19131,113480.0,113470.0,0.267295]
[1754403951690,0.28571,113480.0,113470.0,0.267295]
[1754403951889,1.01376829,113480.0,113470.0,0.001]
[1754403952094,1.03488304,113480.0,113470.0,0.1772549]
[1754403952295,1.03488304,113480.0,113470.0,0.001]
[1754403952496,1.1276504,113480.0,113470.0,0.001]
[1754403952698,1.1276504,113480.0,113470.0,0.002]
[1754403953000,1.1276504,113480.0,113470.0,0.1782549]
[1754403953394,1.1276504,113480.0,113470.0,0.003]
[1754403954097,1.02207366,113480.0,113470.0,0.1782549]
[1754403954397,1.19831306,113480.0,113470.0,0.1782549]
[1754403954604,1.20191701,113480.0,113470.0,0.001]
[1754403954797,1.29004214,113480.0,113470.0,0.001]
[1754403954990,1.24597994,113480.0,113470.0,0.1772549]
[1754403955203,1.30202924,113480.0,113470.0,0.001]
[1754403955500,1.30202924,113480.0,113470.0,0.1772549]
[1754403955701,0.75021035,113480.0,113470.0,0.001]
[1754403956002,1.30202924,113480.0,113470.0,0.1772549]
[1754403956702,1.30202924,113480.0,113470.0,0.001]
[1754403957201,1.30202924,113480.0,113470.0,0.1772549]
[1754403958097,0.57397095,113480.0,113470.0,0.1772549]
[1754403958304,1.30202924,113480.0,113470.0,0.001]
[1754403958600,1.20926188,113480.0,113470.0,0.1772549]
[1754403959195,1.20926188,113480.0,113470.0,0.001]
[1754403959408,1.30523126,113480.0,113470.0,0.001]
[1754403959699,0.3675649,113470.0,113450.0,0.132213]
[1754403960003,0.19131,113450.0,113440.0,0.2644417]
[1754403960401,0.19131,113450.0,113440.0,0.3516917]
[1754403961903,0.19131,113450.0,113440.0,0.3566917]
[1754403962106,0.04541,113450.0,113440.0,0.3797417]
[1754403962304,0.04541,113450.0,113440.0,0.93156059]
[1754403962500,0.87516,113470.0,113460.0,0.1762704]
[1754403962804,0.21250982,113470.0,113460.0,0.2632104]
[1754403963196,0.38876472,113470.0,113460.0,0.2632104]
[1754403963396,0.98464851,113470.0,113450.0,0.3954213]
[1754403963601,0.91968939,113460.0,113450.0,0.1762739]
[1754403963904,0.1916,113450.0,113440.0,0.3085148]
[1754403964103,0.74341889,113450.0,113440.0,0.3085148]
[1754403964305,0.1916,113450.0,113440.0,0.3085148]
[1754403964495,0.1916,113450.0,113440.0,0.3954548]
[1754403964701,0.23572,113470.0,113460.0,0.2632105]
[1754403964994,0.25665084,113470.0,113460.0,0.2632105]
[1754403965406,0.30429084,113470.0,113460.0,0.2632105]
[1754403965604,0.1916,113460.0,113450.0,0.3513532]
[1754403965904,0.76435956,113460.0,113450.0,0.2203428]
[1754403966104,0.38881087,113460.0,113450.0,0.2203428]
[1754403967008,0.38881087,113460.0,113440.0,0.1790902]
[1754403967009,0.1916,113450.0,113440.0,0.3994571]
[1754403967599,0.21255232,113450.0,113440.0,0.3954571]
[1754403967804,0.21255222,113450.0,113440.0,0.3954571]
[1754403968400,0.21255222,113450.0,113440.0,0.4004571]
[1754403968602,0.21255222,113450.0,113440.0,0.3165171]
[1754403969195,0.21255222,113450.0,113440.0,0.4034571]
[1754403969404,0.1916,113450.0,113440.0,0.95527599]
[1754403969606,0.04764,113450.0,113440.0,0.4265071]
[1754403969807,0.04764,113450.0,113440.0,0.97832599]
[1754403970007,0.05204,113460.0,113450.0,0.2862757]
[1754403970303,0.05204,113460.0,113450.0,0.2632257]
[1754403970304,0.17585599,113460.0,113450.0,0.2632257]
[1754403970610,0.26460599,113460.0,113450.0,0.2632257]
[1754403970906,0.12064599,113460.0,113450.0,0.2862757]
[1754403971106,0.12064599,113460.0,113450.0,0.2882757]
[1754403971700,0.26460599,113460.0,113450.0,0.2652257]
[1754403971897,0.81642488,113460.0,113450.0,0.1782857]
[1754403972100,0.26460599,113460.0,113450.0,0.1812857]
[1754403972707,1.17087619,113460.0,113450.0,0.1812857]
[1754403972907,0.99460599,113460.0,113450.0,0.1812857]
[1754403973609,0.99460599,113460.0,113450.0,0.2682257]
[1754403973803,1.17087619,113460.0,113450.0,0.2682257]
[1754403974110,1.17087619,113460.0,113450.0,0.1812857]
[1754403974805,1.90581365,113460.0,113450.0,0.005]
[1754403975412,1.35399476,113460.0,113450.0,0.1812857]
[1754403975605,1.90581365,113460.0,113450.0,0.1812857]
[1754403976399,1.08274666,113460.0,113450.0,0.1812857]
[1754403976608,0.35274666,113460.0,113450.0,0.1812857]
[1754403976800,1.25849686,113460.0,113450.0,0.2682257]
[1754403977004,0.99408599,113460.0,113450.0,0.2682257]
[1754403977312,0.07300599,113460.0,113450.0,0.2682257]
[1754403977612,0.12064599,113460.0,113450.0,0.2912757]
[1754403978099,0.12064599,113460.0,113450.0,0.1792857]
[1754403978305,0.2791824,113420.0,113410.0,0.07881599]
[1754403978503,0.2791824,113420.0,113390.0,0.14063]
[1754403978504,0.2792135,113400.0,113390.0,0.14063]
[1754403978699,0.2792135,113400.0,113380.0,0.02305]
[1754403978700,0.10285,113390.0,113380.0,0.4052204]
[1754403978913,0.1916,113390.0,113380.0,0.4052204]
[1754403979208,0.13639,113390.0,113380.0,0.4052204]
[1754403979417,0.04764,113400.0,113390.0,0.340059]
[1754403979809,0.04764,113400.0,113390.0,0.343059]
[1754403980006,0.08875,113410.0,113400.0,0.1763635]
[1754403980209,0.06890152,113410.0,113400.0,0.3400435]
[1754403980710,0.04764,113410.0,113400.0,0.3400435]
[1754403980913,0.21284777,113410.0,113400.0,0.3169935]
[1754403981209,0.38919567,113410.0,113400.0,0.3169935]
[1754403981413,0.21284777,113410.0,113400.0,0.1773635]
[1754403981611,0.21284777,113410.0,113400.0,0.3179935]
[1754403981820,0.15763777,113410.0,113400.0,0.3179935]
[1754403982004,0.13639,113410.0,113400.0,0.3179935]
[1754403982205,0.04764,113410.0,113400.0,0.3410435]
[1754403982407,0.001,113410.0,113400.0,0.89286239]
[1754403982814,0.001,113410.0,113400.0,0.3410435]
[1754403983010,0.001,113410.0,113400.0,1.36922239]
[1754403983312,0.10504,113420.0,113410.0,0.1763479]
[1754403983510,0.10504,113420.0,113410.0,1.0677879]
[1754403983716,1.0414358,113450.0,113440.0,0.1763013]
[1754403983910,0.88615981,113450.0,113440.0,0.2339413]
[1754403984112,0.15739981,113450.0,113440.0,0.2339413]
[1754403985017,0.06864981,113450.0,113440.0,0.2339413]
[1754403985522,0.06964981,113450.0,113440.0,0.2339413]
[1754403985711,0.15612981,113450.0,113440.0,0.2339413]
[1754403985909,0.24387981,113450.0,113440.0,0.2339413]
[1754403986110,0.24387981,113450.0,113440.0,0.2349413]
[1754403986710,0.47537551,113450.0,113440.0,0.2349413]
[1754403986917,0.47537551,113450.0,113440.0,0.1773013]
[1754403987111,0.47537551,113450.0,113440.0,0.1783013]
[1754403987313,0.57094781,113450.0,113440.0,0.1783013]
[1754403987619,0.6408856,113450.0,113440.0,0.1783013]
[1754403988118,0.6408856,113450.0,113440.0,0.1773013]
[1754403988315,0.6438856,113450.0,113440.0,0.1763013]
[1754403989222,0.6438856,113450.0,113430.0,0.1322305]
[1754403989223,0.08875,113440.0,113430.0,0.1763168]
[1754403989412,0.28606111,113440.0,113430.0,0.1763168]
[1754403989618,0.30016111,113440.0,113430.0,0.1763168]
[1754403989819,0.38891111,113440.0,113430.0,0.1763168]
[1754403990014,0.4119776,113440.0,113420.0,0.312512]
[1754403990215,0.1916,113430.0,113420.0,0.264479]
[1754403990618,0.3679168,113430.0,113420.0,0.1763173]
[1754403990917,0.38893597,113430.0,113420.0,0.1763173]
[1754403991319,0.38893597,113430.0,113420.0,0.1773173]
[1754403991921,0.38893597,113430.0,113420.0,0.001]
[1754403992821,1.02467511,113430.0,113420.0,0.001]
[1754403993017,1.11768906,113430.0,113420.0,0.001]
[1754403993719,0.0582,113410.0,113400.0,0.00253]
[1754403993920,0.234548,113410.0,113390.0,1.96437]
[1754403994119,0.2786349,113410.0,113400.0,0.05444]
[1754403994325,0.4094449,113410.0,113400.0,0.05444]
[1754403994822,0.3653579,113410.0,113400.0,0.05444]
[1754403995219,0.13081,113400.0,113390.0,0.78188]
[1754403995420,0.04724,113400.0,113390.0,0.78388]
[1754403996125,0.06177084,113410.0,113400.0,0.05544]
[1754403996323,0.01453084,113410.0,113400.0,0.78037826]
[1754403996515,0.04724,113420.0,113410.0,0.1763476]
[1754403996720,0.04724,113430.0,113410.0,0.1332583]
[1754403996915,0.04724,113430.0,113420.0,0.177332]
[1754403997122,0.2381742,113430.0,113420.0,0.001]
[1754403997327,0.2381742,113430.0,113420.0,0.05544]
[1754403997517,0.2381742,113430.0,113420.0,0.05444]
[1754403997723,0.40095874,113430.0,113420.0,0.05444]
[1754403997922,0.2235876,113410.0,113400.0,0.72493826]
[1754403998224,0.2236031,113400.0,113390.0,0.002]
[1754403998424,0.2236031,113400.0,113390.0,0.9597787]
[1754403998620,0.2236031,113400.0,113390.0,0.05444]
[1754403998820,0.3071731,113400.0,113390.0,0.05444]
[1754403999022,0.3653731,113400.0,113390.0,0.78136]
[1754403999326,0.3071731,113400.0,113390.0,0.78136]
[1754403999522,0.3071731,113400.0,113390.0,0.78132]
[1754403999730,0.3653731,113400.0,113390.0,0.78132]
[1754404000027,0.3071731,113400.0,113390.0,0.78132]
[1754404000219,0.2236031,113400.0,113390.0,0.78132]
[1754404000424,0.2236031,113400.0,113390.0,0.9606987]
[1754404000621,0.0881689,113420.0,113400.0,0.1763631]
[1754404000822,1.7235963,113410.0,113400.0,0.54757516]
[1754404001023,1.7235963,113410.0,113400.0,1.27425516]
[1754404001423,1.7235963,113410.0,113400.0,0.1763631]
[1754404001623,1.9394252,113410.0,113400.0,0.72664]
[1754404001829,1.9976252,113410.0,113400.0,0.72664]
[1754404002323,0.176363,113400.0,113390.0,0.2645513]
[1754404002520,0.223603,113400.0,113390.0,0.9911113]
[1754404003020,0.176363,113400.0,113390.0,0.9911113]
[1754404003226,1.5,113410.0,113400.0,0.176363]
[1754404003532,1.5,113410.0,113400.0,0.72393816]
[1754404003727,1.5,113410.0,113400.0,1.20229816]
[1754404006035,0.2203893,113440.0,113430.0,0.1763164]
[1754404006327,0.28889309,113450.0,113430.0,0.1763164]
[1754404006328,0.35230238,113450.0,113440.0,0.1763008]
[1754404006528,0.1763164,113430.0,113420.0,0.81205676]
[1754404006732,0.3653264,113430.0,113420.0,1.0345642]
[1754404006934,0.3653264,113430.0,113420.0,1.58602584]
[1754404007134,0.2235564,113430.0,113420.0,1.76235383]
[1754404008028,0.2235564,113430.0,113420.0,1.76535383]
[1754404008427,0.2235564,113430.0,113420.0,1.76835383]
[1754404008629,0.3071264,113430.0,113420.0,1.76803383]
[1754404009231,0.2235564,113430.0,113420.0,1.76803383]
[1754404009527,0.2740048,113440.0,113430.0,0.1763165]
[1754404009528,0.3952784,113440.0,113430.0,0.1763165]
[1754404009723,0.4534784,113440.0,113430.0,0.1763165]
[1754404009935,0.4534784,113440.0,113430.0,0.9017965]
[1754404010530,0.4534784,113440.0,113430.0,0.1763165]
[1754404010732,0.4534784,113440.0,113430.0,0.9037565]
[1754404011036,0.4534784,113440.0,113430.0,0.9047565]
[1754404011237,0.4534784,113440.0,113430.0,0.1793165]
[1754404011440,0.4534784,113440.0,113430.0,0.9047165]
[1754404011633,0.4534784,113440.0,113430.0,0.1793165]
[1754404011832,1.00494004,113440.0,113430.0,0.003]
[1754404012031,1.00494004,113440.0,113410.0,0.0881695]
[1754404012032,0.3653418,113420.0,113410.0,0.1763389]
[1754404012339,0.3653418,113420.0,113410.0,0.9015474]
[1754404012836,0.3653418,113420.0,113410.0,0.9014674]
[1754404014232,0.3653418,113420.0,113410.0,0.9013873]
[1754404014441,0.3663418,113420.0,113410.0,0.9013873]
[1754404014639,0.3663418,113420.0,113410.0,0.1763473]
[1754404014834,0.3663418,113420.0,113410.0,0.9012673]
[1754404015036,0.3663417,113420.0,113410.0,0.9012672]
[1754404015830,0.19001,113420.0,113410.0,0.1763472]
[1754404016036,0.3663417,113420.0,113410.0,0.72492]
[1754404016342,0.3653573,113410.0,113400.0,0.9011101]
[1754404017043,0.18901,113410.0,113400.0,0.9011101]
[1754404017841,0.18901,113410.0,113400.0,0.72476]
[1754404018138,0.3653572,113410.0,113400.0,0.72476]
[1754404018343,0.3653572,113410.0,113380.0,0.81803544]
[1754404018537,0.18901,113400.0,113390.0,0.72448]
[1754404018738,0.04724,113390.0,113380.0,0.86213294]
[1754404018938,0.04724,113390.0,113380.0,1.54251544]
[1754404019139,0.3653768,113400.0,113380.0,0.9449571]
[1754404019442,0.04724,113390.0,113380.0,1.49941874]
[1754404019639,0.3622275,113400.0,113390.0,0.1763783]
[1754404019843,0.3181368,113400.0,113390.0,0.1763783]
[1754404020031,0.362228,113400.0,113380.0,1.58761284]
[1754404020236,0.04724,113390.0,113380.0,1.54351534]
[1754404020542,0.04724,113390.0,113380.0,1.54551534]
[1754404020737,0.2236182,113390.0,113380.0,0.72948]
[1754404020942,0.29315997,113390.0,113380.0,0.002]
[1754404021139,0.43492997,113390.0,113380.0,0.72616]
[1754404021535,0.43492997,113390.0,113380.0,0.002]
[1754404023145,0.43492997,113390.0,113380.0,0.72596]
[1754404023741,0.43492997,113390.0,113380.0,0.72396]
[1754404024051,0.43592997,113390.0,113380.0,0.72396]
[1754404024544,0.43492997,113390.0,113380.0,0.72396]
[1754404024745,0.25955177,113390.0,113380.0,1.45181544]
[1754404025142,0.11697177,113390.0,113380.0,1.45481544]
[1754404025348,0.11797177,113390.0,113380.0,1.45481544]
[1754404025747,0.2228238,113380.0,113370.0,0.2234989]
[1754404025947,1.8645138,113380.0,113370.0,0.9442189]
[1754404026141,1.8645138,113380.0,113370.0,0.9001167]
[1754404026342,1.9086143,113380.0,113360.0,0.86019164]
[1754404026542,0.04643,113370.0,113360.0,0.86019164]
[1754404026740,0.3252089,113370.0,113360.0,0.86019164]
[1754404026945,0.3252089,113370.0,113360.0,1.58383164]
[1754404027549,0.2370089,113370.0,113360.0,0.86019164]
[1754404027746,0.0605995,113370.0,113360.0,1.58679164]
[1754404028048,0.04643,113370.0,113360.0,1.03533]
[1754404028252,0.2228393,113370.0,113360.0,1.58779164]
[1754404028448,0.2228393,113370.0,113360.0,1.58979164]
[1754404028649,0.2228393,113370.0,113360.0,0.2676239]
[1754404028847,0.3645293,113370.0,113360.0,0.2235178]
[1754404029051,0.3645293,113370.0,113360.0,0.9038117]
[1754404029251,0.3645293,113370.0,113360.0,0.9038649]
[1754404029452,0.3645293,113370.0,113360.0,0.7274]
[1754404029655,0.1764249,113360.0,113350.0,0.22211325]
[1754404029854,0.3645449,113360.0,113350.0,0.94547325]
[1754404030350,0.3645449,113360.0,113350.0,0.00156565]
[1754404030547,0.3645449,113360.0,113350.0,0.90132615]
[1754404030744,0.3645449,113360.0,113350.0,0.72488565]
[1754404030948,0.3645449,113360.0,113350.0,0.90132615]
[1754404031150,0.3645449,113360.0,113350.0,0.72488565]
[1754404031350,0.91600654,113360.0,113350.0,0.00156565]
[1754404031555,0.3645449,113360.0,113350.0,0.00156565]
[1754404032459,0.3645449,113360.0,113350.0,0.00456565]
[1754404033067,0.3645449,113360.0,113350.0,0.18100605]
[1754404033661,0.3645449,113360.0,113350.0,0.73146769]
[1754404033860,0.3645449,113360.0,113350.0,0.18000605]
[1754404034070,0.3645449,113360.0,113350.0,0.00356565]
[1754404034368,0.3645449,113360.0,113350.0,0.18000615]
[1754404034961,0.3645449,113360.0,113350.0,0.90292615]
[1754404036259,0.18812,113360.0,113350.0,0.90272615]
[1754404036666,0.18812,113360.0,113350.0,1.45418779]
[1754404036867,0.04643,113360.0,113350.0,1.45718779]
[1754404037359,0.04643,113360.0,113350.0,1.45618779]
[1754404037758,0.04643,113360.0,113350.0,0.90172615]
[1754404037962,0.04643,113360.0,113350.0,1.45518779]
[1754404037963,0.18812,113360.0,113350.0,1.45518779]
[1754404038669,0.3645449,113360.0,113350.0,0.00456565]
[1754404039063,1.01235384,113360.0,113350.0,0.00456565]
[1754404039758,1.01235384,113360.0,113340.0,0.72244]
[1754404039759,0.1764872,113320.0,113310.0,0.0054]
[1754404039966,0.3646228,113310.0,113300.0,0.00404]
[1754404040266,0.18812,113290.0,113280.0,0.1765495]
[1754404040681,0.04643,113300.0,113290.0,0.1765339]
[1754404040967,0.2229482,113300.0,113280.0,1.36197064]
[1754404041167,0.1765448,113290.0,113270.0,0.08828]
[1754404041371,0.1765448,113290.0,113280.0,0.1765494]
[1754404041372,0.18812,113290.0,113280.0,0.1765494]
[1754404041765,0.11554922,113300.0,113290.0,0.1894938]
[1754404041966,0.04643,113310.0,113300.0,0.1894782]
[1754404042266,0.43612801,113320.0,113310.0,0.1765027]
[1754404042461,0.29443801,113320.0,113310.0,0.1765027]
[1754404042669,0.11795091,113320.0,113310.0,0.72796434]
[1754404042875,0.04643,113330.0,113320.0,0.1894471]
[1754404043177,0.04643,113340.0,113330.0,0.1764715]
[1754404043474,0.2228859,113340.0,113330.0,0.1764715]
[1754404043672,0.2228859,113340.0,113330.0,0.8985515]
[1754404043871,0.3110859,113340.0,113330.0,0.8985515]
[1754404044973,0.3645759,113340.0,113330.0,0.1764715]
[1754404045573,0.07118705,113350.0,113340.0,0.1764559]
[1754404045772,1.5,113340.0,113330.0,0.2335461]
[1754404045977,1.5,113340.0,113330.0,0.9553861]
[1754404046869,1.5,113340.0,113330.0,1.50684774]
[1754404047377,1.8645759,113340.0,113330.0,0.8983114]
[1754404047873,1.9528057,113340.0,113320.0,0.2647161]
[1754404048068,1.9528057,113340.0,113330.0,0.8980715]
[1754404048069,1.77406,113340.0,113330.0,0.8980715]
[1754404048575,0.18812,113330.0,113320.0,0.986275]
[1754404048770,0.3645915,113330.0,113320.0,0.986275]
[1754404048972,0.3645915,113330.0,113320.0,0.264715]
[1754404049173,0.18812,113330.0,113320.0,0.986155]
[1754404049367,0.3645915,113330.0,113320.0,0.986155]
[1754404049975,0.18812,113330.0,113320.0,0.986155]
[1754404050176,0.04643,113330.0,113320.0,0.986155]
[1754404050378,0.04643,113330.0,113320.0,0.999115]
[1754404050579,0.13463,113330.0,113320.0,0.985995]
[1754404051070,0.3645915,113330.0,113320.0,0.985995]
[1754404051473,1.54643,113340.0,113330.0,0.1764715]
[1754404051673,1.8645759,113340.0,113330.0,0.1764715]
[1754404051872,1.68812,113340.0,113330.0,0.1764715]
[1754404052574,1.8645759,113340.0,113330.0,0.1774715]
[1754404052774,1.54643,113340.0,113330.0,0.1774715]
[1754404052969,1.5,113340.0,113330.0,0.73911158]
[1754404053480,1.8646859,113340.0,113330.0,0.1774715]
[1754404053681,1.8646859,113340.0,113330.0,0.1784715]
[1754404054673,1.68823,113340.0,113330.0,0.1784715]
[1754404055078,1.8646859,113340.0,113330.0,0.1774715]
[1754404055278,1.8646859,113340.0,113330.0,0.8982315]
[1754404055479,1.68823,113340.0,113330.0,0.8982315]
[1754404055877,1.54937,113340.0,113330.0,1.44791158]
[1754404056079,1.54937,113340.0,113330.0,0.73911158]
[1754404056281,1.54937,113340.0,113330.0,1.45975158]
[1754404056972,1.8121859,113340.0,113330.0,0.8981115]
[1754404057176,1.8646859,113340.0,113330.0,0.8981115]
[1754404057376,1.8646859,113340.0,113330.0,0.8991115]
[1754404058178,1.68823,113340.0,113330.0,0.8991115]
[1754404058378,1.8646859,113340.0,113330.0,0.8991115]
[1754404058878,1.54937,113340.0,113330.0,1.46075158]
[1754404059280,1.54937,113340.0,113330.0,1.44779158]
[1754404059580,1.68823,113340.0,113330.0,0.8991115]
[1754404059783,1.8646859,113340.0,113330.0,0.8991115]
[1754404060474,1.8646859,113340.0,113330.0,0.1784715]
[1754404061280,1.8646859,113340.0,113330.0,0.002]
[1754404061581,0.1764715,113330.0,113320.0,0.8965228]
[1754404061782,0.3647015,113330.0,113320.0,0.8965228]
[1754404062673,0.3647015,113330.0,113320.0,0.72004]
[1754404062875,0.3647015,113330.0,113320.0,0.896527]
[1754404063176,0.3647171,113320.0,113310.0,1.00217564]
[1754404063976,0.3647171,113320.0,113310.0,0.95805064]
[1754404064183,0.3647171,113320.0,113310.0,0.91392664]
[1754404064983,0.3647171,113320.0,113310.0,0.91492664]
[1754404065482,0.18823,113320.0,113310.0,0.91492664]
[1754404066178,0.364717,113320.0,113310.0,0.91493524]
[1754404066386,0.38667359,113320.0,113310.0,0.01855264]
[1754404066579,0.310067,113320.0,113310.0,0.001]
[1754404066777,0.1765026,113310.0,113300.0,0.00507]
[1754404066977,0.2783726,113310.0,113300.0,0.00507]
[1754404067687,0.84944673,113310.0,113300.0,0.00507]
[1754404068084,0.2647903,113300.0,113280.0,0.2648084]
[1754404068274,0.10187,113280.0,113270.0,0.2288122]